Workbook

Sheet NSU
B1: Hanna Lammela | E1: 10.5.2002 Oulunsalo
B2: SUPERPESIS | E2: Runkosarja | I2: Kärkilyönnit (KL), pesänvälit | Q2: Runkosarja | U2: Ylempi loppusarja | Z2: Alempi loppusarja | AG2: Arvo-ottelut ja mitalit
B3: Vuosi | C3: Sija | D3: Seura | E3: OTT | F3: KUN | G3: LÖI | H3: TOI | I3: KL | J3: 0 > 1 | K3: 1 > 2 | L3: 2 > 3 | M3: 3 > k | N3: KL-% | P3: LÖI | Q3: TOI | R3: L+T | S3: KL | U3: OTT | V3: KUN | W3: LÖI | X3: TOI | Y3: KL | Z3: OTT | AA3: KUN | AB3: LÖI | AC3: TOI | AD3: KL | AE3: IL | AF3: LL | AG3: Halli | AH3: K | AI3: H | AJ3: P
B4: 2015 | D4: OsVa | F4: suomensarja
B5: 2016 | D5: OsVa | F5: suomensarja
B6: 2017 | D6: KeKi 2 | F6: suomensarja
B7: 2018 | D7: KeKi 2 | F7: suomensarja
B8: 2018 | C8: 7. | D8: KeKi | E8: 2 | F8: 0 | G8: 2 | H8: 0 | I8: 4 | J8: 0 | K8: 0 | L8: 2 | M8: 2 | N8: 33.3 % | O8: 12 | U8: 3 | V8: 0 | W8: 0 | X8: 0 | Y8: 4
B9: 2019 | D9: OsVa | F9: ykköspesis
B10: 2019 | C10: 8. | D10: KeKi | E10: 22 | F10: 0 | G10: 3 | H10: 3 | I10: 33 | J10: 16 | K10: 7 | L10: 7 | M10: 3 | N10: 30.0 % | O10: 110 | U10: 3 | V10: 0 | W10: 0 | X10: 0 | Y10: 6
B11: 2020 | C11: 7. | D11: KeKi | E11: 20 | F11: 0 | G11: 3 | H11: 3 | I11: 33 | J11: 9 | K11: 15 | L11: 6 | M11: 3 | N11: 46.5 % | O11: 71 | U11: 2 | V11: 0 | W11: 0 | X11: 0 | Y11: 3
B12: 2021 | C12: 7. | D12: KeKi | E12: 23 | F12: 0 | G12: 3 | H12: 4 | I12: 38 | J12: 18 | K12: 8 | L12: 9 | M12: 3 | N12: 52.1 % | O12: 73 | U12: 3 | V12: 0 | W12: 0 | X12: 0 | Y12: 0
B13: 2022 | C13: 10. | D13: KeKi | E13: 24 | F13: 1 | G13: 6 | H13: 11 | I13: 74 | J13: 40 | K13: 20 | L13: 7 | M13: 7 | N13: 49.0 % | O13: 151 | AE13: 1
B14: 2023 | C14: 12. | D14: KeKi | E14: 24 | F14: 5 | G14: 12 | H14: 16 | I14: 98 | J14: 6 | K14: 38 | L14: 37 | M14: 17 | N14: 57.7 % | O14: 170 | Z14: 5 | AA14: 0 | AB14: 1 | AC14: 4 | AD14: 17
B15: 2024 | C15: 1. | D15: Manse PP | E15: 23 | F15: 0 | G15: 2 | H15: 6 | I15: 39 | J15: 8 | K15: 14 | L15: 15 | M15: 2 | N15: 47.6 % | O15: 82 | U15: 10 | V15: 0 | W15: 1 | X15: 1 | Y15: 18 | AH15: 1
B16: Yhteensä | E16: =SUM(E8:E15) -> 138 | F16: =SUM(F8:F15) -> 6 | G16: 31 | H16: 43 | I16: 319 | J16: 97 | K16: 102 | L16: 83 | M16: 37 | N16: =PRODUCT(I16/O16) -> 47.7 % | O16: 669 | U16: =SUM(U8:U15) -> 21 | V16: =SUM(V8:V15) -> 0 | W16: =SUM(W8:W15) -> 1 | X16: =SUM(X8:X15) -> 1 | Y16: =SUM(Y8:Y15) -> 31 | Z16: =SUM(Z8:Z15) -> 5 | AA16: =SUM(AA8:AA15) -> 0 | AB16: 1 | AC16: 4 | AD16: 17 | AE16: =SUM(AE8:AE15) -> 1 | AF16: 0 | AG16: 0 | AH16: 1 | AI16: =SUM(AI15:AI15) -> 0 | AJ16: 0
B17: Pesispörssi | D17: =SUM(F16:H16)+((I16-F16-G16)/3)+(E16/3)+(AE16*25)+(AF16*25)+(AG16*10)+(AH16*25)+(AI16*20)+(AJ16*15) -> 270.0
B19: URA SUPERISSA | E19: OTT | F19: KUN | G19: LÖI | H19: TOI | I19: KL | K19: ka/L | L19: ka/T | M19: ka/KL | N19: K - % | P19: ENSIMMÄISET
B20: Runkosarja | E20: =PRODUCT(E16) -> 138 | F20: =PRODUCT(F16) -> 6 | G20: =PRODUCT(G16) -> 31 | H20: =PRODUCT(H16) -> 43 | I20: =PRODUCT(I16) -> 319 | K20: =PRODUCT((F20+G20)/E20) -> 0.27 | L20: =PRODUCT(H20/E20) -> 0.31 | M20: =PRODUCT(I20/E20) -> 2.31 | N20: =PRODUCT(N16) -> 47.7 % | O20: =PRODUCT(O16) -> 669 | P20: Ottelu | S20: 27.07. 2018 KeKi - Pesäkarhut 1-0 (4-2, 4-4) | AC20: 1. ottelu | AF20: 16 v 2 kk 17 pv
B21: Ylempi loppusarja | E21: =PRODUCT(U16) -> 21 | F21: =PRODUCT(V16) -> 0 | G21: =PRODUCT(W16) -> 1 | H21: =PRODUCT(X16) -> 1 | I21: =PRODUCT(Y16) -> 31 | K21: =PRODUCT((F21+G21)/E21) -> 0.05 | L21: =PRODUCT(H21/E21) -> 0.05 | M21: =PRODUCT(I21/E21) -> 1.48 | N21: =PRODUCT(I21/O21) -> 43.7 % | O21: 71 | P21: Lyöty juoksu | S21: 27.07. 2018 KeKi - Pesäkarhut 1-0 (4-2, 4-4) | AC21: 1. ottelu | AF21: 16 v 2 kk 17 pv
B22: Alempi loppusarja | E22: =PRODUCT(Z16) -> 5 | F22: =PRODUCT(AA16) -> 0 | G22: 1 | H22: 4 | I22: 17 | K22: =PRODUCT((F22+G22)/E22) -> 0.20 | L22: =PRODUCT(H22/E22) -> 0.80 | M22: =PRODUCT(I22/E22) -> 3.40 | N22: =PRODUCT(I22/O22) -> 60.7 % | O22: 28 | P22: Tuotu juoksu | S22: 30.05. 2019 LaVe - KeKi 1-0 (0-7, 0-3) | AC22: 10. ottelu | AF22: 17 v 0 kk 20 pv
B23: KAIKKI | E23: =SUM(E20:E22) -> 164 | F23: =SUM(F20:F22) -> 6 | G23: =SUM(G20:G22) -> 33 | H23: =SUM(H20:H22) -> 48 | I23: =SUM(I20:I22) -> 367 | K23: =PRODUCT((F23+G23)/E23) -> 0.24 | L23: =PRODUCT(H23/E23) -> 0.29 | M23: =PRODUCT(I23/E23) -> 2.24 | N23: =PRODUCT(I23/O23) -> 47.8 % | O23: =SUM(O20:O22) -> 768 | P23: Kunnari | S23: 20.07. 2022 Mailattaret - KeKi 2-1 (1-4, 4-2, 1-0) | AC23: 95. ottelu | AF23: 20 v 2 kk 10 pv
B25: Seurat | D25: OsVa = Oulunsalon Vasama (1910), kasvattajaseura
D26: KeKi = Kempeleen Kiri (1915)
D27: Manse PP = Manse PP Edustus (2015)

Sheet Arvo-ottelut
B1: ITÄ - LÄNSI - KORTTI
B2: Hanna Lammela | C2: 10.5.2002 Oulunsalo
B3: NAISET | C3: Itä - Länsi, tulos | D3: Joukkue | E3: Seura | G3: V | H3: T | I3: H | J3: Up. | K3: Lj. | L3: Palk. | M3: O | N3: K | O3: L | P3: T | Q3: KL | R3: 1 | S3: 2 | T3: 3 | U3: k | V3: KL-% | W3: Pelinjohtaja | X3: Yleisöä
B4: 10.07. 2022 Tampere | C4: 0-1 (1-3, 1-1) | D4: Itä | E4: KeKi | I4: 1 | J4: s | K4: 7 | M4: 1 | Q4: 1/6 | R4: 1/3 | S4: 0/2 | T4: 0/1 | V4: 16.7 % | W4: Arttu Jurvakainen | X4: 1810
B5: Ikä ensimmäisessä ottelussa | C5: 20 v 2 kk 0 pv
B7: B-TYTÖT | C7: Itä - Länsi, tulos | D7: Joukkue | E7: Seura | G7: V | H7: T | I7: H | J7: Up. | K7: Lj. | L7: Palk. | M7: O | N7: K | O7: L | P7: T | Q7: KL | R7: 1 | S7: 2 | T7: 3 | U7: k | V7: KL-% | W7: Pelinjohtaja | X7: Yleisöä
B8: 06.07. 2019 Seinäjoki | C8: 0-1 (4-4, 0-4) | D8: Itä | E8: KeKi | I8: 1 | J8: 1v | K8: 9 | M8: 1 | Q8: 1/6 | R8: 1/3 | S8: 0/2 | U8: 0/1 | V8: 16.7 % | W8: Matti Pirinen | X8: 1054
